fUST/lending_fUST_20251205
["ID","MTS","AMOUNT","RATE_DAILY","PERIOD"]
[396257259,1764894645165,-151.0,0.000192,2]
[396257260,1764894645174,-151.0,0.000192,2]
[396257261,1764894645183,-151.0,0.000192,2]
[396257262,1764894645192,-151.0,0.000192,2]
[396257263,1764894645200,-151.0,0.000192,2]
[396257264,1764894645209,-151.0,0.000192,2]
[396257265,1764894645219,-336.565536,0.000192,2]
[396257266,1764894645230,-336.565536,0.000192,2]
[396257267,1764894645239,-151.0,0.000192,2]
[396257268,1764894645248,-336.565536,0.000192,2]
[396257269,1764894645257,-336.565536,0.000192,2]
[396257270,1764894645271,-151.0,0.000192,2]
[396257271,1764894645279,-151.0,0.000192,2]
[396257272,1764894645289,-216.74005,0.000192,2]
[396257273,1764894645298,-151.0,0.000192,2]
[396257274,1764894645310,-151.0,0.000192,2]
[396257275,1764894645319,-151.0,0.000192,2]
[396257276,1764894645328,-151.0,0.000192,2]
[396257277,1764894645338,-151.0,0.000192,2]
[396257278,1764894645347,-151.0,0.000192,2]
[396257279,1764894645356,-758.481007,0.000192,2]
[396257280,1764894645364,-217.917825,0.000192,2]
[396257281,1764894645373,-758.481007,0.000192,2]
[396257282,1764894645383,-758.481007,0.000192,2]
[396257283,1764894645392,-758.481007,0.000192,2]
[396257284,1764894645402,-1828.62935,0.000192,2]
[396257285,1764894645411,-1828.62935,0.000192,2]
[396257286,1764894645420,-1828.62935,0.000192,2]
[396257287,1764894645430,-1828.62935,0.000192,2]
[396257288,1764894645439,-151.0,0.000192,2]
[396257289,1764894645448,-151.0,0.000192,2]
[396257290,1764894645458,-245.635236,0.000192,2]
[396257291,1764894645467,-151.0,0.000192,2]
[396257292,1764894645476,-245.635236,0.000192,2]
[396257293,1764894645485,-3897.05739869,0.00019227,2]
[396257294,1764894645495,-151.0,0.00019294,2]
[396257295,1764894645504,-151.0,0.00019294,2]
[396257296,1764894645514,-151.0,0.00019294,2]
[396257297,1764894645523,-151.0,0.00019294,2]
[396257298,1764894645532,-151.0,0.00019294,2]
[396257299,1764894645542,-151.0,0.00019294,2]
[396257300,1764894645552,-151.0,0.00019294,2]
[396257301,1764894645561,-5205.0,0.00019302,2]
[396257302,1764894645570,-5205.0,0.00019565,2]
[396257303,1764894645579,-1065.22927729,0.00019603,2]
[396257304,1764894645587,-501.8121561,0.0001965,2]
[396257305,1764894645597,-321.0,0.00019682,2]
[396257306,1764894645606,-500.0,0.00019697,2]
[396257307,1764894645615,-500.0,0.00019697,2]
[396257308,1764894645625,-239.29897172,0.00019726,2]
[396257309,1764894645634,-154.642567,0.00019726,2]
[396257311,1764894645643,-153.0,0.00019726,2]
[396257312,1764894645653,-153.0,0.00019726,2]
[396257313,1764894645662,-153.0,0.00019726,2]
[396257314,1764894645671,-160.0,0.00019735,3]
[396257315,1764894645680,-160.0,0.00019735,5]
[396257316,1764894645689,-5205.0,0.00019772,2]
[396257317,1764894645698,-397.2306088,0.0002,2]
[396257318,1764894645707,-397.2306088,0.0002,2]
[396257319,1764894645716,-2016.16,0.0002,30]
[396257320,1764894645725,-1000.0,0.0002,2]
[396257321,1764894645734,-2000.0,0.0002,7]
[396257322,1764894645742,-5205.0,0.00020025,2]
[396257323,1764894645751,-151.0,0.00020025,2]
[396257324,1764894645760,-151.0,0.00020025,2]
[396257325,1764894645768,-235.053624,0.00020025,2]
[396257326,1764894645777,-235.053624,0.00020025,2]
[396257327,1764894645786,-156.16907,0.00020025,2]
[396257328,1764894645796,-235.053624,0.00020025,2]
[396257329,1764894645805,-156.16907,0.00020025,2]
[396257330,1764894645814,-235.053624,0.00020025,2]
[396257331,1764894645823,-156.16907,0.00020025,2]
[396257332,1764894645832,-151.0,0.00020025,2]
[396257333,1764894645841,-156.16907,0.00020025,2]
[396257334,1764894645851,-151.0,0.00020025,2]
[396257335,1764894645860,-151.0,0.00020025,2]
[396257336,1764894645869,-151.0,0.00020025,2]
[396257337,1764894645878,-151.0,0.00020025,2]
[396257338,1764894645887,-151.0,0.00020025,2]
[396257339,1764894645897,-151.0,0.00020025,2]
[396257340,1764894645906,-151.0,0.00020025,2]
[396257341,1764894645916,-284.284516,0.00020025,2]
[396257342,1764894645925,-151.0,0.00020025,2]
[396257343,1764894645934,-1000.0,0.00020159,10]
[396257344,1764894645943,-244.0,0.00020159,10]
[396257345,1764894645954,-359.02927984,0.00020184,2]
[396257346,1764894645964,-5205.0,0.00020186,2]
[396257347,1764894645974,-515.77906,0.00020187,2]
[396257348,1764894645984,-1065.22927729,0.00020499,2]
[396257349,1764894645993,-311.421502,0.00020548,2]
[396257350,1764894646002,-396.8261515,0.00020959,2]
[396257351,1764894646012,-3000.0,0.00021,2]
[396257352,1764894646020,-150.999999,0.00021,2]
[396257353,1764894646030,-862.52,0.00021056,10]
[396257354,1764894646039,-2080.976436,0.00021056,15]
[396257355,1764894646049,-500.0,0.000211,5]
[396257356,1764894646060,-205.85530542,0.000211,2]
[396257357,1764894646070,-34000.0,0.000211,3]
[396257358,1764894646079,-151.0,0.000211,2]
[396257359,1764894646089,-151.0,0.000211,2]
[396257360,1764894646098,-151.0,0.000211,2]
[396257361,1764894646107,-151.0,0.000211,2]
[396257362,1764894646118,-287.600165,0.000211,2]
[396257363,1764894646127,-151.0,0.000211,2]
[396257364,1764894646137,-151.0,0.000211,2]
[396257365,1764894646146,-151.0,0.000211,2]
[396257366,1764894646155,-151.0,0.000211,2]
[396257367,1764894646165,-364.43422427,0.000211,2]
[396257368,1764894646174,-300.0,0.000211,2]
[396257369,1764894646196,-151.0,0.000211,2]
[396257370,1764894646215,-152.81286195,0.000211,2]
[396257371,1764894646233,-166.328051,0.000211,2]
[396257372,1764894646253,-151.0,0.000211,2]
[396257373,1764894646276,-151.0,0.000211,2]
[396257374,1764894646294,-758.481007,0.000211,2]
[396257375,1764894646312,-758.481007,0.000211,2]
[396257376,1764894646325,-758.481007,0.000211,2]
[396257377,1764894646344,-758.481007,0.000211,2]
[396257378,1764894646364,-1828.62935,0.000211,2]
[396257379,1764894646384,-1828.62935,0.000211,2]
[396257380,1764894646398,-1828.62935,0.000211,2]
[396257381,1764894646414,-1828.629344,0.000211,2]
[396257382,1764894646430,-172.0,0.00021342,4]
[396257383,1764894646447,-364.43422427,0.00021391,9]
[396257384,1764894646460,-1065.22927729,0.00021396,2]
[396257385,1764894646475,-1417.92,0.000214,2]
[396257386,1764894646490,-414.0,0.0002156,2]
[396257387,1764894646504,-364.43422427,0.00021681,17]
[396257388,1764894646521,-353.33333333,0.00021737,17]
[396257389,1764894646535,-158.92542876,0.00021753,2]
[396257390,1764894646550,-579.93,0.000219,2]
[396257391,1764894646565,-500.0,0.00021918,120]
[396257392,1764894646580,-150.5,0.0002197,120]
[396257393,1764894646603,-364.43422427,0.00021972,25]
[396257394,1764894646618,-150.5,0.0002198,120]
[396257395,1764894646632,-150.5,0.0002199,120]
[396257396,1764894646646,-147377.03,0.00022,2]
[396257397,1764894646660,-629.5,0.00022,14]
[396257398,1764894646675,-1000.0,0.00022,2]
[396257399,1764894646690,-151.0,0.00022,2]
[396257400,1764894646705,-151.0,0.00022,2]
[396257401,1764894646720,-235.053624,0.00022,2]
[396257402,1764894646735,-235.053624,0.00022,2]
[396257403,1764894646750,-156.16907,0.00022,2]
[396257404,1764894646766,-235.053624,0.00022,2]
[396257405,1764894646780,-156.16907,0.00022,2]
[396257406,1764894646794,-235.053624,0.00022,2]
[396257407,1764894646808,-156.16907,0.00022,2]
[396257408,1764894646822,-151.0,0.00022,2]
[396257409,1764894646839,-156.16907,0.00022,2]
[396257410,1764894646855,-151.0,0.00022,2]
[396257411,1764894646870,-151.0,0.00022,2]
[396257412,1764894646885,-217.73813,0.00022,2]
[396257413,1764894646900,-151.0,0.00022,2]
[396257414,1764894646914,-151.0,0.00022,2]
[396257415,1764894646929,-151.0,0.00022,2]
[396257416,1764894646944,-151.0,0.00022,2]
[396257417,1764894646958,-151.0,0.00022,2]
[396257418,1764894646973,-280.193394,0.00022,2]
[396257419,1764894646988,-151.0,0.00022,2]
[396257420,1764894647005,-151.0,0.00022,2]
[396257421,1764894647019,-151.0,0.00022,2]
[396257422,1764894647034,-151.0,0.00022,2]
[396257423,1764894647048,-151.0,0.00022,2]
[396257424,1764894647063,-151.0,0.00022,2]
[396257425,1764894647078,-336.565536,0.00022,2]
[396257426,1764894647092,-336.565536,0.00022,2]
[396257427,1764894647106,-336.565536,0.00022,2]
[396257428,1764894647121,-336.565536,0.00022,2]
[396257429,1764894647136,-151.0,0.00022,2]
[396257430,1764894647151,-169.627838,0.00022,2]
[396257431,1764894647165,-151.0,0.00022,2]
[396257432,1764894647180,-151.0,0.00022,2]
[396257433,1764894647195,-294.488098,0.00022,2]
[396257434,1764894647209,-151.0,0.00022,2]
[396257435,1764894647223,-151.0,0.00022,2]
[396257436,1764894647239,-262.559392,0.00022,2]
[396257437,1764894647254,-169.0,0.00022,2]
[396257438,1764894647272,-1000.0,0.00022175,10]
[396257439,1764894647285,-492.0,0.00022175,10]
[396257440,1764894647301,-396.60211145,0.00022184,2]
[396257441,1764894647314,-169.0,0.00022192,7]
[396257442,1764894647328,-364.43422427,0.00022262,32]
[396257443,1764894647343,-1066.29450657,0.00022292,2]
[396257444,1764894647357,-500.0,0.00022439,2]
[396257445,1764894647372,-364.43422427,0.00022553,40]
[396257446,1764894647386,-3897.05739869,0.00022706,2]
[396257447,1764894647399,-364.43422427,0.00022843,48]
[396257448,1764894647413,-1417.92,0.000229,2]
[396257449,1764894647428,-169.0,0.00023014,7]
[396257450,1764894647441,-300.0,0.00023134,56]
[396257451,1764894647455,-364.43422427,0.00023134,56]
[396257452,1764894647469,-533.5,0.000232,7]
[396257453,1764894647483,-205.85530542,0.00023254,56]
[396257454,1764894647497,-2000.0,0.00023333,7]
[396257455,1764894647510,-364.43422427,0.00023424,63]
[396257456,1764894647524,-629.5,0.000237,14]
[396257457,1764894647538,-364.43422427,0.00023715,71]
[396257458,1764894647552,-192.2832849,0.00023836,2]
[396257459,1764894647565,-192.2832849,0.00023836,2]
[396257460,1764894647578,-192.2832849,0.00023836,2]
[396257461,1764894647592,-192.2832849,0.00023836,2]
[396257462,1764894647605,-2067.34399876,0.00024,60]
[396257463,1764894647618,-364.43422427,0.00024005,79]
[396257464,1764894647631,-192.2832849,0.00024164,2]
[396257465,1764894647646,-192.2832849,0.00024164,2]
[396257466,1764894647660,-192.2832849,0.00024164,2]
[396257467,1764894647674,-192.2832849,0.00024164,2]
[396257468,1764894647688,-192.2832849,0.00024164,2]
[396257469,1764894647702,-192.2832849,0.00024164,2]
[396257470,1764894647715,-286.9695606,0.00024164,2]
[396257471,1764894647729,-192.2832849,0.00024164,2]
[396257472,1764894647742,-192.2832849,0.00024164,2]
[396257473,1764894647757,-192.2832849,0.00024164,2]
[396257474,1764894647771,-192.2832849,0.00024164,2]
[396257475,1764894647793,-192.2832849,0.00024164,2]
[396257476,1764894647807,-192.2832849,0.00024164,2]
[396257477,1764894647820,-192.2832849,0.00024164,2]
[396257478,1764894647833,-192.2832849,0.00024164,2]
[396257479,1764894647848,-192.2832849,0.00024164,2]
[396257480,1764894647861,-192.2832849,0.00024164,2]
[396257481,1764894647874,-192.2832849,0.00024164,2]
[396257482,1764894647888,-192.2832849,0.00024164,2]
[396257483,1764894647902,-173.0,0.00024164,7]
[396257484,1764894647915,-434.17494306,0.00024184,2]
[396257485,1764894647930,-579.93,0.000242,7]
[396257486,1764894647944,-364.43422427,0.00024296,86]
[396257487,1764894647958,-1000.0,0.00024393,10]
[396257488,1764894647973,-791.0,0.00024393,10]
[396257489,1764894647986,-1417.92,0.000245,2]
[396257490,1764894648000,-414.0,0.0002456,2]
[396257491,1764894648268,-364.43422427,0.00024586,94]
[396257492,1764894648278,-500.0,0.00024658,120]
[396257493,1764894648288,-150.0,0.00024658,2]
[396257494,1764894648298,-380.0,0.00024658,2]
[396257495,1764894648307,-500.0,0.00024658,2]
[396257496,1764894648316,-256.66977394,0.00024667,30]
[396257497,1764894648325,-151.12250137,0.00024667,30]
[396257498,1764894648336,-500.0,0.00024795,2]
[396257499,1764894648345,-7992.2217354,0.000248,2]
[396257500,1764894648354,-364.43422427,0.00024877,102]
[396257501,1764894648363,-147377.03,0.000249,2]
[396257502,1764894648372,-151.0,0.000249,7]
[396257503,1764894648382,-235.053624,0.000249,7]
[396257504,1764894648391,-235.053624,0.000249,7]
[396257505,1764894648400,-156.16907,0.000249,7]
[396257506,1764894648409,-235.053624,0.000249,7]
[396257507,1764894648418,-156.16907,0.000249,7]
[396257508,1764894648428,-235.053615,0.000249,7]
[396257509,1764894648437,-156.16907,0.000249,7]
[396257510,1764894648447,-151.0,0.000249,7]
[396257511,1764894648457,-156.16906,0.000249,7]
[396257512,1764894648466,-151.0,0.000249,7]
[396257513,1764894648475,-151.0,0.000249,7]
[396257514,1764894648484,-151.0,0.000249,7]
[396257515,1764894648492,-151.0,0.000249,7]
[396257516,1764894648501,-151.0,0.000249,7]
[396257518,1764894648510,-151.0,0.000249,7]
[396257519,1764894648518,-151.0,0.000249,7]
[396257520,1764894648526,-188.529882,0.000249,7]
[396257521,1764894648535,-151.0,0.000249,7]
[396257522,1764894648543,-151.0,0.000249,7]
[396257523,1764894648552,-151.0,0.000249,7]
[396257524,1764894648560,-151.0,0.000249,7]
[396257525,1764894648568,-168.949824,0.000249,7]
[396257526,1764894648577,-336.565536,0.000249,7]
[396257527,1764894648586,-336.565536,0.000249,7]
[396257528,1764894648594,-336.565536,0.000249,7]
[396257529,1764894648603,-336.565533,0.000249,7]
[396257530,1764894648612,-427293.347485,0.000249,2]
[396257531,1764894648620,-500.0,0.00024932,2]
[396257532,1764894648629,-192.2832849,0.00024986,2]
[396257533,1764894648638,-192.2832849,0.00024986,2]
[396257534,1764894648647,-192.2832849,0.00024986,2]
[396257535,1764894648655,-192.2832849,0.00024986,2]
[396257536,1764894648664,-192.2832849,0.00024986,2]
[396257537,1764894648672,-192.2832849,0.00024986,2]
[396257538,1764894648681,-192.2832849,0.00024986,2]
[396257539,1764894648691,-192.2832849,0.00024986,2]
[396257540,1764894648700,-192.2832849,0.00024986,2]
[396257541,1764894648709,-190.2717631,0.00024986,2]
[396257542,1764894648718,-384.4497034,0.00024986,2]
[396257543,1764894648727,-192.2832849,0.00024986,2]
[396257544,1764894648736,-192.2832849,0.00024986,2]
[396257545,1764894648746,-192.2832849,0.00024986,2]
[396257546,1764894648755,-192.2832849,0.00024986,2]
[396257547,1764894648764,-192.2832849,0.00024986,2]
[396257548,1764894648773,-384.5081366,0.00024986,2]
[396257549,1764894648783,-192.2832849,0.00024986,2]
[396257550,1764894648792,-192.2832849,0.00024986,2]
[396257551,1764894648801,-192.2832849,0.00024986,2]
[396257552,1764894648810,-1008.94,0.00025,2]
[396257553,1764894648820,-50000.0,0.00025,45]
[396257554,1764894648829,-79077.7537473,0.00025,15]
[396257555,1764894648840,-301.99999959,0.00025,5]
[396257556,1764894648850,-500.0,0.00025069,2]
[396257557,1764894648860,-300.0,0.00025168,110]
[396257558,1764894648870,-250.0,0.00025205,2]
[396257559,1764894648879,-500.0,0.00025206,2]
[396257560,1764894648889,-192.2832849,0.00025315,2]
[396257561,1764894648899,-192.2832849,0.00025315,2]
[396257562,1764894648908,-500.0,0.00025343,2]
[396257563,1764894648918,-205.85530542,0.00025407,110]
[396257564,1764894648927,-304.4747684,0.00025479,2]
[396257565,1764894648937,-500.0,0.0002548,2]
[396257566,1764894648947,-533.5,0.000255,7]
[396257567,1764894648956,-500.0,0.00025617,2]
[396257568,1764894648966,-500.0,0.00025656,7]
[396257569,1764894648976,-350.0,0.00025753,2]
[396257570,1764894648986,-500.0,0.00025754,2]
[396257571,1764894648996,-169.0,0.00025775,7]
[396257572,1764894649005,-500.0,0.00025891,2]
[396257573,1764894649015,-629.5,0.000259,14]
[396257574,1764894649024,-500.0,0.00025992,7]
[396257575,1764894649034,-3000.0,0.00026,4]
[396257576,1764894649045,-500.0,0.00026028,2]
[396257577,1764894649054,-579.93,0.000261,7]
[396257578,1764894649063,-7992.2217354,0.00026114,2]
[396257579,1764894649073,-500.0,0.00026165,2]
[396257580,1764894649083,-471.74777467,0.00026184,2]
[396257581,1764894649092,-3897.05739869,0.00026185,2]
[396257582,1764894649102,-327.31084547,0.00026212,7]
[396257583,1764894649111,-155.85919378,0.00026217,5]
[396257584,1764894649120,-147377.03,0.000263,2]
[396257585,1764894649131,-450.0,0.00026301,2]
[396257586,1764894649140,-500.0,0.00026302,2]
[396257587,1764894649151,-500.0,0.00026308,120]
[396257588,1764894649160,-500.0,0.00026439,2]
[396257589,1764894649169,-500.0,0.00026533,7]
[396257590,1764894649178,-380.0,0.00026576,2]
[396257591,1764894649187,-200.0,0.000266,120]
[396257592,1764894649197,-1227.30240318,0.00026667,7]
[396257593,1764894649207,-515.77906,0.00026676,2]
[396257594,1764894649216,-500.0,0.00026705,7]
[396257595,1764894649226,-200.0,0.00026707,120]
[396257596,1764894649236,-500.0,0.00026752,7]
[396257597,1764894649245,-1000.0,0.00026832,30]
[396257598,1764894649255,-1000.0,0.00026832,30]
[396257599,1764894649269,-550.0,0.00026849,2]
[396257600,1764894649278,-200.0,0.00026936,120]
[396257601,1764894649287,-300.0,0.0002699,30]
[396257602,1764894649299,-300.0,0.0002699,7]
[396257603,1764894649308,-300.0,0.0002699,5]
[396257604,1764894649318,-800.0,0.0002699,2]
[396257605,1764894649327,-600.0,0.0002699,3]
[396257606,1764894649338,-300.0,0.0002699,4]
[396257607,1764894649348,-533.5,0.00027,7]
[396257608,1764894649357,-801.32186567,0.00027,120]
[396257609,1764894649367,-906.21,0.00027,120]
[396257610,1764894649376,-200.0,0.00027271,120]
[396257611,1764894649386,-550.0,0.000273,120]
[396257612,1764894649395,-200.0,0.000273,120]
[396257613,1764894649404,-313.3779,0.000273,2]
[396257614,1764894649414,-169.0,0.00027386,7]
[396257615,1764894649423,-566.42230724,0.0002739,7]
[396257616,1764894649432,-150.0,0.0002739,2]
[396257617,1764894649441,-1046.429157,0.0002739,120]
[396257618,1764894649450,-297.57808175,0.00027397,120]
[396257619,1764894649460,-1000.0,0.00027397,2]
[396257620,1764894649469,-1000.0,0.00027397,2]
[396257621,1764894649478,-1000.0,0.00027397,2]
[396257622,1764894649487,-1000.0,0.00027397,2]
[396257623,1764894649496,-1000.0,0.00027397,2]
[396257624,1764894649505,-1000.0,0.00027397,2]
[396257625,1764894649514,-1000.0,0.00027397,2]
[396257626,1764894649523,-871.86778346,0.00027397,2]
[396257627,1764894649533,-500.0,0.00027397,2]
[396257628,1764894649542,-223.36785021,0.00027397,2]
[396257629,1764894649552,-151.0,0.00027397,2]
[396257630,1764894649561,-151.0,0.00027397,2]
[396257631,1764894649570,-500.0,0.00027397,120]
[396257632,1764894649580,-650.0,0.00027397,5]
[396257633,1764894649589,-11992.5002818,0.00027397,30]
[396257634,1764894649599,-151.0,0.00027397,7]
[396257635,1764894649608,-151.0,0.00027397,7]
[396257636,1764894649617,-151.0,0.00027397,7]
[396257637,1764894649626,-151.0,0.00027397,7]
[396257638,1764894649635,-151.0,0.00027397,7]
[396257639,1764894649645,-151.0,0.00027397,7]
[396257640,1764894649654,-151.0,0.00027397,7]
[396257641,1764894649663,-151.0,0.00027397,7]
[396257642,1764894649672,-151.0,0.00027397,7]
[396257643,1764894649682,-151.0,0.00027397,7]
[396257644,1764894649692,-151.0,0.00027397,7]
[396257645,1764894649701,-151.0,0.00027397,7]
[396257646,1764894649711,-151.0,0.00027397,7]
[396257647,1764894649720,-151.0,0.00027397,7]
[396257648,1764894649729,-151.0,0.00027397,7]
[396257649,1764894649738,-151.0,0.00027397,7]
[396257650,1764894649747,-151.0,0.00027397,7]
[396257651,1764894649757,-253.089505,0.00027397,7]
[396257652,1764894649771,-393.933865,0.00027397,7]
[396257653,1764894649780,-393.933865,0.00027397,7]
[396257654,1764894649789,-393.933865,0.00027397,7]
[396257655,1764894649798,-393.933865,0.00027397,7]
[396257656,1764894649807,-393.933865,0.00027397,7]
[396257657,1764894649816,-393.933865,0.00027397,7]
[396257658,1764894649825,-393.933865,0.00027397,7]
[396257659,1764894649834,-393.933865,0.00027397,7]
[396257660,1764894649843,-393.933865,0.00027397,7]
[396257661,1764894649852,-393.933865,0.00027397,7]
[396257662,1764894649862,-393.933865,0.00027397,7]
[396257663,1764894649871,-393.933865,0.00027397,7]
[396257664,1764894649880,-393.933865,0.00027397,7]
[396257665,1764894649889,-393.933865,0.00027397,7]
[396257666,1764894649899,-393.933865,0.00027397,7]
[396257667,1764894649908,-393.933865,0.00027397,7]
[396257668,1764894649917,-393.933865,0.00027397,7]
[396257669,1764894649926,-393.933865,0.00027397,7]
[396257670,1764894649936,-393.933865,0.00027397,7]
[396257671,1764894649946,-393.933874,0.00027397,7]
[396257672,1764894649955,-151.0,0.00027397,7]
[396257673,1764894649965,-151.0,0.00027397,7]
[396257674,1764894649974,-151.0,0.00027397,7]
[396257675,1764894649983,-151.53,0.00027397,7]
[396257676,1764894649992,-500.0,0.00027397,5]
[396257677,1764894650001,-150.0,0.00027397,5]
[396257678,1764894650011,-150.0,0.00027397,5]
[396257680,1764894650021,-150.0,0.00027397,5]
[396257682,1764894650031,-150.0,0.00027397,5]
[396257684,1764894650040,-7992.2217354,0.00027427,2]
[396257686,1764894650050,-45828.39456836,0.000275,2]
[396257688,1764894650060,-629.5,0.000275,14]
[396257690,1764894650070,-579.93,0.000275,7]
[396257692,1764894650079,-313.09727484,0.000275,60]
[396257694,1764894650088,-200.0,0.00027522,120]
[396257696,1764894650098,-500.0,0.00027534,2]
[396257698,1764894650108,-151.0,0.00027534,2]
[396257700,1764894650117,-151.0,0.00027534,2]
[396257702,1764894650126,-414.0,0.0002756,2]
[396257704,1764894650136,-576.15564321,0.00027575,7]
[396257706,1764894650145,-131230.08918809,0.000276,2]
[396257742,1764894651424,-3e-08,0.00015,2]
[396257743,1764894678354,-3205.58368566,0.00012369,2]
[396257744,1764894678367,-3588.84262868,0.00012369,2]
[396257745,1764894722278,153.27,1e-05,2]
[396257746,1764894722548,153.27,1.2e-05,2]
[396257747,1764894722909,153.27,1.4e-05,2]
[396257748,1764894723247,153.27,1.7e-05,2]
[396257749,1764894723640,153.27,1.9e-05,2]
[396257750,1764894723931,153.27,2.1e-05,2]
[396257751,1764894724258,153.27,2.3e-05,2]
[396257752,1764894724551,153.27,2.6e-05,2]
[396257753,1764894724861,153.27,2.8e-05,2]
[396257754,1764894725173,153.27,3e-05,2]
[396257755,1764894725463,153.27,3.2e-05,2]
[396257756,1764894725721,-673.09818367,0.00012244,2]
[396257757,1764894726027,-500.0,0.00012368,2]
[396257758,1764894726057,-500.0,0.00012368,2]
[396257759,1764894726086,-500.0,0.00012368,2]
[396257760,1764894726116,-500.0,0.00012368,2]
[396257761,1764894726146,-500.0,0.00012368,2]
[396257762,1764894726176,-500.0,0.00012368,2]
[396257763,1764894726205,-500.0,0.00012368,2]
[396257764,1764894726235,-267.75393615,0.00012368,2]
[396257765,1764894726265,-500.0,0.00012368,2]
[396257766,1764894726288,-500.0,0.00012368,2]
[396257767,1764894726298,-173.09818367,0.00012368,2]
[396257768,1764894726335,153.27,3.5e-05,2]
[396257769,1764894726348,-326.90181633,0.00012368,2]
[396257770,1764894726357,-173.09818367,0.00012368,2]
[396257771,1764894727293,-326.90181633,0.00012368,2]
[396257772,1764894727307,-173.09818367,0.00012368,2]
[396257773,1764894727323,-326.90181633,0.00012368,2]
[396257774,1764894727336,-173.09818367,0.00012368,2]
[396257775,1764894727353,-326.90181633,0.00012368,2]
[396257776,1764894727367,-173.09818367,0.00012368,2]
[396257777,1764894727417,153.27,3.7e-05,2]
[396257778,1764894727450,-326.90181633,0.00012368,2]
[396257779,1764894727464,-173.09818367,0.00012368,2]
[396257780,1764894727485,-326.90181633,0.00012368,2]
[396257781,1764894727499,-173.09818367,0.00012368,2]
[396257782,1764894727513,-326.90181633,0.00012368,2]
[396257783,1764894727525,-173.09818367,0.00012368,2]
[396257784,1764894727541,-267.75393615,0.00012368,2]
[396257785,1764894727556,-59.14788018,0.00012368,2]
[396257786,1764894727568,-440.85211982,0.00012368,2]
[396257787,1764894727609,-59.14788018,0.00012368,2]
[396257788,1764894727623,-59.15788018,0.00012368,2]
[396257789,1764894727695,153.27,3.9e-05,2]
[396257790,1764894727801,153.27,4.1e-05,2]
[396257791,1764894727899,153.27,4.4e-05,2]
[396257792,1764894727985,153.27,4.6e-05,2]
[396257793,1764894728084,153.27,4.8e-05,2]
[396257794,1764894728159,153.27,5e-05,2]
[396257795,1764894728253,153.27,5.3e-05,2]
[396257796,1764894728511,153.27,5.5e-05,2]
[396257797,1764894728772,153.27,5.7e-05,2]
[396257798,1764894729052,153.27,5.9e-05,2]
[396257799,1764894729341,153.27,6.2e-05,2]
[396257800,1764894729618,153.27,6.4e-05,2]
[396257801,1764894729946,153.27,6.6e-05,2]
[396257802,1764894730214,153.27,6.8e-05,2]
[396257803,1764894730889,153.27,7.1e-05,2]
[396257804,1764894731068,153.27,7.3e-05,2]
[396257805,1764894731126,153.27,7.5e-05,2]
[396257806,1764894731400,99.9,7.7e-05,2]
[396257807,1764894731428,53.37,7.7e-05,2]
[396257808,1764894731701,153.27,8e-05,2]
[396257809,1764894731842,-440.84211982,0.00012368,2]